fUSD/lending_fUSD_20240121
["ID","MTS","AMOUNT","RATE_DAILY","PERIOD"]
[312443270,1705876553539,-1882.97,0.00044383,31]
[312443271,1705876553581,-670.83,0.00044383,31]
[312443272,1705876553625,-500.0,0.00044383,31]
[312443273,1705876553670,-357.26593966,0.00044383,31]
[312443274,1705876553710,-705.2,0.00044383,31]
[312443275,1705876553750,-782.76,0.00044383,31]
[312443276,1705876553790,-500.0,0.00044383,31]
[312443277,1705876553829,-500.0,0.00044383,31]
[312443278,1705876553869,-794.26,0.00044383,31]
[312443279,1705876553907,-711.05,0.00044383,31]
[312443280,1705876553945,-500.0,0.00044383,31]
[312443281,1705876553983,-1594.26,0.00044383,31]
[312443282,1705876554025,-3948.71,0.00044383,31]
[312443283,1705876554073,-1147.94,0.00044383,31]
[312443284,1705876554115,-500.0,0.00044383,31]
[312443285,1705876554160,-2653.24,0.00044383,31]
[312443286,1705876554203,-1622.79,0.00044383,31]
[312443287,1705876554246,-887.82,0.00044383,31]
[312443288,1705876554287,-2192.06,0.00044383,31]
[312443289,1705876554329,-500.19,0.00044383,31]
[312443290,1705876554369,-500.0,0.00044383,31]
[312443291,1705876554410,-4489.98,0.00044383,31]
[312443292,1705876554446,-981.16,0.00044383,31]
[312443293,1705876554477,-500.0,0.00044383,31]
[312443294,1705876554510,-500.0,0.00044383,31]
[312443295,1705876554545,-500.0,0.00044383,31]
[312443296,1705876554579,-500.0,0.00044383,31]
[312443297,1705876554610,-529.53,0.00044383,31]
[312443298,1705876554642,-524.77,0.00044383,31]
[312443299,1705876554676,-2135.06,0.00044383,31]
[312443300,1705876554710,-500.0,0.00044383,31]
[312443301,1705876554743,-1015.89,0.00044383,31]
[312443302,1705876554775,-863.57,0.00044383,31]
[312443303,1705876554810,-528.03,0.00044383,31]
[312443304,1705876554846,-2514.68,0.00044383,31]
[312443305,1705876554881,-748.59,0.00044383,31]
[312443306,1705876554918,-1005.16,0.00044383,31]
[312443307,1705876554953,-500.0,0.00044383,31]
[312443308,1705876554985,-765.0,0.00044639,30]
[312443309,1705876555020,-82052.0,0.00044639,30]
[312443310,1705876555054,-257.0,0.0004487,30]
[312443311,1705876555086,-204.0,0.0004489,30]
[312443312,1705876555120,-203.0,0.0004489,30]
[312443313,1705876555153,-456196.72631981,0.000449,30]
[312443314,1705876555186,-500.0,0.00044931,31]
[312443315,1705876555217,-500.0,0.00044931,31]
[312443316,1705876555249,-500.0,0.00044931,31]
[312443317,1705876555280,-500.0,0.00044931,31]
[312443318,1705876555315,-568.04,0.00044931,31]
[312443319,1705876555346,-500.0,0.00044931,31]
[312443320,1705876555378,-190.42571312,0.00044931,31]
[312443321,1705876555410,-500.0,0.00044931,31]
[312443322,1705876555441,-523.93,0.00044931,31]
[312443323,1705876555473,-500.0,0.00044931,31]
[312443324,1705876555505,-500.0,0.00044931,31]
[312443325,1705876555536,-500.0,0.00044931,31]
[312443326,1705876555568,-514.30215244,0.00044931,31]
[312443327,1705876555600,-500.0,0.00044931,31]
[312443328,1705876555636,-500.0,0.00044931,31]
[312443329,1705876555669,-500.0,0.00044931,31]
[312443330,1705876555707,-500.0,0.00044931,31]
[312443331,1705876555740,-500.0,0.00044931,31]
[312443332,1705876555772,-516.25,0.00044931,31]
[312443333,1705876555804,-500.0,0.00044931,31]
[312443334,1705876555836,-579.47,0.00044931,31]
[312443335,1705876555871,-500.0,0.00044931,31]
[312443336,1705876556654,-500.0,0.00044931,31]
[312443337,1705876556699,-500.0,0.00044931,31]
[312443338,1705876556732,-500.0,0.00044931,31]
[312443339,1705876556765,-500.0,0.00044931,31]
[312443340,1705876556799,-648.96463665,0.00044931,31]
[312443341,1705876556832,-500.0,0.00044931,31]
[312443342,1705876556870,-500.0,0.00044931,31]
[312443343,1705876556903,-500.0,0.00044931,31]
[312443344,1705876556935,-500.0,0.00044931,31]
[312443345,1705876556968,-500.0,0.00044931,31]
[312443346,1705876557000,-500.0,0.00044931,31]
[312443347,1705876557033,-500.0,0.00044931,31]
[312443348,1705876557064,-509.28,0.00044931,31]
[312443349,1705876557096,-500.0,0.00044931,31]
[312443350,1705876557129,-313.84755511,0.00044931,31]
[312443351,1705876557162,-500.0,0.00044931,31]
[312443352,1705876557196,-500.0,0.00044931,31]
[312443353,1705876557229,-500.0,0.00044931,31]
[312443354,1705876557262,-500.0,0.00044931,31]
[312443355,1705876557297,-500.0,0.00044931,31]
[312443356,1705876557330,-500.0,0.00044931,31]
[312443357,1705876557362,-508.85,0.00044931,31]
[312443358,1705876557394,-608.21,0.00044931,31]
[312443359,1705876557425,-579.63,0.00044931,31]
[312443360,1705876557456,-500.0,0.00044931,31]
[312443361,1705876557487,-500.0,0.00044931,31]
[312443362,1705876557518,-500.0,0.00044931,31]
[312443363,1705876557548,-598.31,0.00044931,31]
[312443364,1705876557580,-500.0,0.00044931,31]
[312443365,1705876557611,-500.0,0.00044931,31]
[312443366,1705876557642,-785.88,0.00044931,31]
[312443367,1705876557673,-529.13,0.00044931,31]
[312443368,1705876557705,-500.0,0.00044931,31]
[312443369,1705876557737,-500.0,0.00044931,31]
[312443370,1705876557770,-500.0,0.00044931,31]
[312443371,1705876557802,-500.0,0.00044931,31]
[312443372,1705876557833,-500.0,0.00044931,31]
[312443373,1705876557864,-500.0,0.00044931,31]
[312443374,1705876557895,-500.0,0.00044931,31]
[312443375,1705876557927,-500.0,0.00044931,30]
[312443376,1705876557961,-500.0,0.00044931,31]
[312443377,1705876557993,-500.0,0.00044931,31]
[312443378,1705876558026,-500.0,0.00044931,31]
[312443379,1705876558062,-1369.47,0.00044931,31]
[312443380,1705876558096,-500.0,0.00044931,31]
[312443381,1705876558134,-505.47,0.00044931,31]
[312443382,1705876558166,-806.13,0.00044931,31]
[312443383,1705876558199,-500.0,0.00044931,31]
[312443384,1705876558231,-500.0,0.00044931,31]
[312443385,1705876558263,-500.0,0.00044931,31]
[312443386,1705876558296,-707.32,0.00044931,31]
[312443387,1705876558327,-500.0,0.00044931,31]
[312443388,1705876558359,-500.0,0.00044931,31]
[312443389,1705876558390,-500.0,0.00044931,31]
[312443390,1705876558421,-500.0,0.00044931,31]
[312443391,1705876558451,-552.64,0.00044931,31]
[312443392,1705876558482,-500.0,0.00044931,31]
[312443393,1705876558513,-805.58,0.00044931,31]
[312443394,1705876558545,-500.0,0.00044931,31]
[312443395,1705876558584,-272.59,0.00044931,31]
[312443396,1705876558616,-605.93,0.00044931,31]
[312443397,1705876558647,-1097.88,0.00044931,31]
[312443398,1705876558683,-268.08,0.00044931,30]
[312443399,1705876558721,-495.38583384,0.00044931,31]
[312443400,1705876558752,-500.0,0.00044931,31]
[312443401,1705876558784,-845.1,0.00044931,31]
[312443402,1705876558815,-500.0,0.00044931,31]
[312443403,1705876558847,-500.0,0.00044931,31]
[312443404,1705876558879,-521.41,0.00044931,31]
[312443405,1705876558910,-788.32,0.00044931,31]
[312443406,1705876558941,-720.24,0.00044931,31]
[312443407,1705876558973,-518.74,0.00044931,31]
[312443408,1705876559004,-500.0,0.00044931,31]
[312443409,1705876559037,-500.0,0.00044931,31]
[312443410,1705876559069,-500.0,0.00044931,31]
[312443411,1705876559101,-500.0,0.00044931,31]
[312443412,1705876559134,-500.0,0.00044931,31]
[312443413,1705876559169,-1173.58,0.00044931,31]
[312443414,1705876559203,-810.11,0.00044931,31]
[312443415,1705876559236,-547.76,0.00044931,31]
[312443416,1705876559271,-500.0,0.00044931,31]
[312443417,1705876559304,-898.08,0.00044931,31]
[312443418,1705876559339,-500.0,0.00044931,31]
[312443419,1705876559371,-1249.82,0.00044931,31]
[312443420,1705876559403,-500.0,0.00044931,31]
[312443421,1705876559435,-644.21,0.00044931,31]
[312443422,1705876559466,-598.75,0.00044931,31]
[312443423,1705876559497,-500.0,0.00044931,31]
[312443424,1705876559528,-1092.57,0.00044931,31]
[312443425,1705876559559,-1011.23,0.00044931,31]
[312443426,1705876559590,-860.96,0.00044931,31]
[312443427,1705876559621,-500.0,0.00044931,31]
[312443428,1705876559651,-500.0,0.00044931,31]
[312443429,1705876559682,-500.0,0.00044931,31]
[312443430,1705876559713,-1118.43,0.00044931,31]
[312443431,1705876559744,-749.11,0.00044931,31]
[312443432,1705876559775,-500.0,0.00044931,31]
[312443433,1705876559807,-731.16,0.00044931,31]
[312443434,1705876559981,-723.92,0.00044931,31]
[312443435,1705876560015,-500.0,0.00044931,31]
[312443436,1705876560048,-500.0,0.00044931,31]
[312443437,1705876560085,-500.0,0.00044931,31]
[312443438,1705876560123,-500.0,0.00044931,31]
[312443439,1705876560155,-654.99,0.00044931,31]
[312443440,1705876560192,-1172.22,0.00044931,31]
[312443441,1705876560228,-1046.22,0.00044931,31]
[312443442,1705876560265,-785.66,0.00044931,31]
[312443443,1705876560304,-500.0,0.00044931,31]
[312443444,1705876560343,-643.91,0.00044931,31]
[312443445,1705876560379,-317.67210265,0.00044931,31]
[312443446,1705876560414,-501.64,0.00044931,31]
[312443447,1705876560448,-500.0,0.00044931,31]
[312443448,1705876560483,-500.0,0.00044931,31]
[312443449,1705876560517,-574.38934521,0.00044931,31]
[312443450,1705876560551,-552.21,0.00044931,31]
[312443451,1705876560584,-562.71,0.00044931,31]
[312443452,1705876560619,-500.0,0.00044931,31]
[312443453,1705876560654,-708.83,0.00044931,31]
[312443454,1705876560692,-500.0,0.00044931,31]
[312443455,1705876560727,-1106.03,0.00044931,31]
[312443456,1705876560761,-645.89,0.00044931,31]
[312443457,1705876560801,-500.0,0.00044931,31]
[312443458,1705876560836,-646.94,0.00044931,31]
[312443459,1705876560870,-500.0,0.00044931,31]
[312443460,1705876560903,-500.0,0.00044931,31]
[312443461,1705876560936,-500.0,0.00044931,31]
[312443462,1705876560970,-2098.17,0.00044931,31]
[312443463,1705876561005,-941.47,0.00044931,31]
[312443464,1705876561048,-500.0,0.00044931,31]
[312443465,1705876561083,-797.7,0.00044931,31]
[312443466,1705876561119,-635.48,0.00044931,31]
[312443467,1705876561152,-581.22,0.00044931,31]
[312443468,1705876561186,-500.0,0.00044931,31]
[312443469,1705876561221,-1051.73,0.00044931,31]
[312443470,1705876561257,-611.42,0.00044931,31]
[312443471,1705876561292,-500.0,0.00044931,31]
[312443472,1705876561326,-992.54,0.00044931,31]
[312443473,1705876561362,-500.0,0.00044931,31]
[312443474,1705876561402,-500.0,0.00044931,31]
[312443475,1705876561439,-565.87,0.00044931,31]
[312443476,1705876561477,-500.0,0.00044931,31]
[312443477,1705876561513,-500.0,0.00044931,31]
[312443478,1705876561546,-588.35,0.00044931,31]
[312443479,1705876561581,-709.96,0.00044931,31]
[312443480,1705876561614,-500.0,0.00044931,31]
[312443481,1705876561647,-500.0,0.00044931,31]
[312443482,1705876561680,-679.91,0.00044931,31]
[312443483,1705876561713,-500.0,0.00044931,31]
[312443484,1705876561747,-826.78,0.00044931,31]
[312443485,1705876561780,-419.26,0.00044931,31]
[312443486,1705876561814,-550.18,0.00044931,31]
[312443487,1705876561849,-227.57,0.00044931,31]
[312443488,1705876561884,-1072.37,0.00044931,31]
[312443489,1705876561918,-561.03,0.00044931,31]
[312443490,1705876561952,-500.0,0.00044931,31]
[312443491,1705876561984,-722.05,0.00044931,31]
[312443492,1705876562018,-1048.9,0.00044931,31]
[312443493,1705876562051,-500.0,0.00044931,31]
[312443494,1705876562085,-500.32,0.00044931,31]
[312443495,1705876562122,-675.32,0.00044931,31]
[312443496,1705876562157,-574.76,0.00044931,31]
[312443497,1705876562195,-1933.9,0.00044931,31]
[312443498,1705876562231,-595.6,0.00044931,31]
[312443499,1705876562266,-500.0,0.00044931,31]
[312443500,1705876562300,-847.51,0.00044931,31]
[312443501,1705876562335,-583.74,0.00044931,31]
[312443502,1705876562370,-614.24,0.00044931,31]
[312443503,1705876562403,-259.71918339,0.00044931,31]
[312443504,1705876562436,-500.0,0.00044931,31]
[312443505,1705876562468,-500.0,0.00044931,31]
[312443506,1705876562500,-500.0,0.00044931,31]
[312443507,1705876562533,-500.0,0.00044931,31]
[312443508,1705876562565,-500.0,0.00044931,31]
[312443509,1705876562601,-640.11,0.00044931,31]
[312443510,1705876562636,-640.18,0.00044931,31]
[312443511,1705876562668,-503.74,0.00044931,31]
[312443512,1705876562700,-1125.5,0.00044931,31]
[312443513,1705876562733,-500.0,0.00044931,31]
[312443514,1705876562765,-553.42,0.00044931,31]
[312443515,1705876562799,-706.24,0.00044931,31]
[312443516,1705876562832,-500.0,0.00044931,31]
[312443517,1705876562865,-759.04,0.00044931,31]
[312443518,1705876562898,-500.0,0.00044931,31]
[312443519,1705876562932,-618.9,0.00044931,31]
[312443520,1705876562964,-620.1,0.00044931,31]
[312443521,1705876562996,-751.8,0.00044931,31]
[312443522,1705876563033,-596.28,0.00044931,31]
[312443523,1705876563067,-791.81,0.00044931,31]
[312443524,1705876563116,-9012.61,0.00044931,31]
[312443525,1705876563154,-1020.43,0.00044931,31]
[312443526,1705876563194,-730.33,0.00044931,31]
[312443527,1705876563231,-500.0,0.00044931,31]
[312443528,1705876563268,-500.0,0.00044931,31]
[312443529,1705876563302,-170.40088576,0.00044931,31]
[312443530,1705876563338,-500.0,0.00044931,31]
[312443531,1705876563374,-856.84,0.00044931,31]
[312443532,1705876563408,-500.0,0.00044931,31]
[312443533,1705876563441,-735.19,0.00044931,31]
[312443534,1705876563475,-500.0,0.00044931,31]
[312443535,1705876563508,-500.0,0.00044931,31]
[312443536,1705876563541,-2377.26,0.00044931,31]
[312443537,1705876563574,-766.87,0.00044931,31]
[312443538,1705876563608,-500.0,0.00044931,31]
[312443539,1705876563836,-500.0,0.00044931,31]
[312443540,1705876563872,-439.4631787,0.00044931,31]
[312443541,1705876563904,-500.0,0.00044931,31]
[312443542,1705876563936,-1112.8,0.00044931,31]
[312443543,1705876563968,-641.2,0.00044931,31]
[312443544,1705876564000,-881.88,0.00044931,31]
[312443545,1705876564253,-1038.39,0.00044931,31]
[312443546,1705876564292,-647.93,0.00044931,31]
[312443547,1705876564327,-666.36,0.00044931,31]
[312443548,1705876564361,-4639.17,0.00044931,31]
[312443549,1705876564395,-673.21,0.00044931,31]
[312443550,1705876564428,-3298.95,0.00044931,31]
[312443551,1705876564461,-500.0,0.00044931,31]
[312443552,1705876564489,-992.34,0.00044931,31]
[312443553,1705876564517,-2034.53,0.00044931,31]
[312443554,1705876564547,-660.28,0.00044931,31]
[312443555,1705876564581,-500.0,0.00044931,31]
[312443556,1705876564614,-500.0,0.00044931,31]
[312443557,1705876564647,-28036.98,0.00044931,31]
[312443558,1705876564680,-1938.75,0.00044931,31]
[312443559,1705876564714,-549.75,0.00044931,31]
[312443560,1705876564746,-903.34,0.00044931,31]
[312443561,1705876564778,-3123.65,0.00044931,31]
[312443562,1705876564813,-1216.46,0.00044931,31]
[312443563,1705876564850,-500.0,0.00044931,31]
[312443564,1705876564885,-1029.32,0.00044931,31]
[312443565,1705876564919,-686.97,0.00044931,31]
[312443566,1705876564952,-1296.81,0.00044931,31]
[312443567,1705876564984,-2125.13,0.00044931,31]
[312443568,1705876565019,-1186.92,0.00044931,31]
[312443569,1705876565054,-2234.56,0.00044931,31]
[312443570,1705876565088,-1017.01,0.00044931,31]
[312443571,1705876565125,-1214.61,0.00044931,31]
[312443572,1705876565161,-500.0,0.00044931,31]
[312443573,1705876565197,-550.46,0.00044931,31]
[312443574,1705876565234,-980.04,0.00044931,31]
[312443575,1705876565270,-500.0,0.00044931,31]
[312443576,1705876565310,-764.47,0.00044931,31]
[312443577,1705876565353,-500.0,0.00044931,31]
[312443578,1705876565393,-692.17,0.00044931,31]
[312443579,1705876565431,-500.0,0.00044931,31]
[312443580,1705876565467,-589.26,0.00044931,31]
[312443581,1705876565504,-500.0,0.00044931,31]
[312443582,1705876565542,-4050.53,0.00044931,31]
[312443583,1705876565578,-790.3,0.00044931,31]
[312443584,1705876565614,-1409.68,0.00044931,31]
[312443585,1705876565657,-884.87,0.00044931,31]
[312443586,1705876565693,-337.59137888,0.00044931,31]
[312443587,1705876565729,-500.0,0.00044931,31]
[312443588,1705876565773,-8615.3,0.00044931,31]
[312443589,1705876565815,-650.65,0.00044931,31]
[312443590,1705876565863,-1164.14,0.00044931,31]
[312443591,1705876565901,-509.39,0.00044931,31]
[312443592,1705876565938,-500.39,0.00044931,31]
[312443593,1705876565974,-1317.68,0.00044931,31]
[312443594,1705876566010,-500.0,0.00044931,31]
[312443595,1705876566047,-773.48,0.00044931,31]
[312443596,1705876566083,-500.0,0.00044931,31]
[312443597,1705876566120,-500.0,0.00044931,31]
[312443598,1705876566157,-500.0,0.00044931,31]
[312443599,1705876566192,-500.0,0.00044931,31]
[312443600,1705876566233,-687.04,0.00044931,31]
[312443601,1705876566269,-2437.34,0.00044931,31]
[312443602,1705876566306,-500.0,0.00044931,31]
[312443603,1705876566347,-2353.8,0.00044931,31]
[312443604,1705876566388,-2671.1,0.00044931,31]
[312443605,1705876566428,-500.0,0.00044931,31]
[312443606,1705876566467,-500.0,0.00044931,31]
[312443607,1705876566505,-1627.9,0.00044931,31]
[312443608,1705876566543,-500.0,0.00044931,31]
[312443609,1705876566578,-701.03,0.00044931,31]
[312443610,1705876566614,-744.64,0.00044931,31]
[312443611,1705876566650,-722.25,0.00044931,31]
[312443612,1705876566685,-1057.32,0.00044931,31]
[312443613,1705876566723,-500.0,0.00044931,31]
[312443614,1705876566759,-2605.29,0.00044931,31]
[312443615,1705876566795,-500.0,0.00044931,31]
[312443616,1705876566831,-500.0,0.00044931,31]
[312443617,1705876566865,-1869.91,0.00044931,31]
[312443618,1705876566901,-628.07,0.00044931,31]
[312443619,1705876566944,-853.42,0.00044931,31]
[312443620,1705876566980,-500.0,0.00044931,31]
[312443621,1705876567018,-500.0,0.00044931,31]
[312443622,1705876567053,-500.0,0.00044931,31]
[312443623,1705876567105,-1463.45,0.00044931,31]
[312443624,1705876567150,-738.08,0.00044931,31]
[312443625,1705876567194,-1856.37,0.00044931,31]
[312443626,1705876567238,-2717.95,0.00044931,31]
[312443627,1705876567275,-500.0,0.00044931,31]
[312443628,1705876567313,-671.9,0.00044931,31]
[312443629,1705876567356,-500.0,0.00044931,31]
[312443630,1705876567392,-3818.85,0.00044931,31]
[312443631,1705876567427,-576.78,0.00044931,31]
[312443632,1705876567461,-685.5,0.00044931,31]
[312443633,1705876567496,-500.0,0.00044931,31]
[312443634,1705876567539,-1834.73,0.00044931,31]
[312443635,1705876567592,-782.28,0.00044931,31]
[312443636,1705876567627,-801.69,0.00044931,31]
[312443637,1705876567662,-7874.08,0.00044931,31]
[312443638,1705876567695,-508.28,0.00044931,31]
[312443639,1705876567728,-1665.66,0.00044931,31]
[312443640,1705876567762,-1435.39,0.00044931,31]
[312443641,1705876567795,-500.0,0.00044931,31]
[312443642,1705876567831,-500.0,0.00044931,31]
[312443643,1705876568044,-3052.12,0.00044931,31]
[312443644,1705876568078,-1882.97,0.00044931,31]
[312443645,1705876568110,-1653.87,0.00044931,31]
[312443646,1705876568149,-500.0,0.00044931,31]
[312443647,1705876568183,-670.83,0.00044931,31]
[312443648,1705876568216,-500.0,0.00044931,31]
[312443649,1705876568250,-705.2,0.00044931,31]
[312443650,1705876568283,-782.76,0.00044931,31]
[312443651,1705876568317,-500.0,0.00044931,31]
[312443652,1705876568350,-500.0,0.00044931,31]
[312443653,1705876568383,-794.26,0.00044931,31]
[312443654,1705876568415,-711.05,0.00044931,31]
[312443655,1705876568454,-500.0,0.00044931,31]
[312443656,1705876568491,-1594.26,0.00044931,31]
[312443657,1705876568528,-3948.71,0.00044931,31]
[312443658,1705876568561,-1147.94,0.00044931,31]
[312443659,1705876568598,-500.0,0.00044931,31]
[312443660,1705876568632,-2653.24,0.00044931,31]
[312443661,1705876568666,-1622.79,0.00044931,31]
[312443662,1705876568699,-887.82,0.00044931,31]
[312443663,1705876568733,-2192.06,0.00044931,31]
[312443664,1705876568766,-500.19,0.00044931,31]
[312443665,1705876568801,-500.0,0.00044931,31]
[312443666,1705876568838,-4489.98,0.00044931,31]
[312443667,1705876568870,-981.16,0.00044931,31]
[312443668,1705876568909,-500.0,0.00044931,31]
[312443669,1705876568960,-500.0,0.00044931,31]
[312443670,1705876569011,-500.0,0.00044931,31]
[312443671,1705876569058,-500.0,0.00044931,31]
[312443672,1705876569096,-529.53,0.00044931,31]
[312443673,1705876569131,-524.77,0.00044931,31]
[312443674,1705876569169,-2135.06,0.00044931,31]
[312443675,1705876569206,-500.0,0.00044931,31]
[312443676,1705876569240,-1015.89,0.00044931,31]
[312443677,1705876569274,-863.57,0.00044931,31]
[312443678,1705876569308,-528.03,0.00044931,31]
[312443679,1705876569342,-2514.68,0.00044931,31]
[312443680,1705876569408,-748.59,0.00044931,31]
[312443681,1705876569445,-1005.16,0.00044931,31]
[312443682,1705876569479,-500.0,0.00044931,31]
[312443683,1705876569541,-200.0,0.00044987,47]
[312443684,1705876569578,-1000.0,0.00044999,120]
[312443685,1705876569617,-1000.0,0.00044999,120]
[312443686,1705876569653,-500.42458942,0.00045,120]
[312443687,1705876569692,-945.87971938,0.00045,30]
[312443688,1705876569733,-753638.94306196,0.00045,30]
[312443689,1705876569792,-203973.08180258,0.00045,30]
[312443690,1705876569831,-300.0,0.00045,46]
[312443691,1705876569891,-1000.0,0.00045,45]
[312443692,1705876569934,-1000.0,0.00045,45]
[312443693,1705876569980,-1000.0,0.00045,45]
[312443694,1705876570026,-1000.0,0.00045,45]
[312443695,1705876570066,-1000.0,0.00045,45]
[312443696,1705876570104,-1000.0,0.00045,45]
[312443697,1705876570142,-1000.0,0.00045,45]
[312443698,1705876570178,-2500.0,0.00045,30]
[312443699,1705876570212,-2227.251623,0.00045,120]
[312443700,1705876570248,-830.88,0.00045041,31]
[312443701,1705876570284,-830.88,0.00045041,31]
[312443702,1705876570320,-830.88,0.00045041,31]
[312443703,1705876570354,-830.88,0.00045041,31]
[312443704,1705876570389,-830.88,0.00045041,31]
[312443705,1705876570423,-830.88,0.00045041,31]
[312443706,1705876570457,-830.88,0.00045041,31]
[312443707,1705876570492,-830.88,0.00045041,31]
[312443708,1705876570526,-765.0,0.0004509,30]
[312443709,1705876570560,-1875.14396243,0.0004509,30]
[312443710,1705876570596,-82052.0,0.0004509,30]
[312443711,1705876570633,-500.0,0.00045479,31]
[312443712,1705876570670,-278.18069201,0.00045479,31]
[312443713,1705876570707,-397.90697314,0.00045479,31]
[312443714,1705876570742,-500.0,0.00045479,31]
[312443715,1705876570777,-568.04,0.00045479,31]
[312443716,1705876570813,-500.0,0.00045479,31]
[312443717,1705876570848,-500.0,0.00045479,31]
[312443718,1705876570888,-523.93,0.00045479,31]
[312443719,1705876570925,-500.0,0.00045479,31]
[312443720,1705876570958,-500.0,0.00045479,31]
[312443721,1705876570991,-500.0,0.00045479,31]
[312443722,1705876571024,-500.0,0.00045479,31]
[312443723,1705876571058,-500.0,0.00045479,31]
[312443724,1705876571090,-500.0,0.00045479,31]
[312443725,1705876571124,-500.0,0.00045479,31]
[312443726,1705876571158,-500.0,0.00045479,31]
[312443727,1705876571193,-516.25,0.00045479,31]
[312443728,1705876571234,-500.0,0.00045479,31]
[312443729,1705876571267,-579.47,0.00045479,31]
[312443730,1705876571301,-500.0,0.00045479,31]
[312443731,1705876571334,-500.0,0.00045479,31]
[312443732,1705876571371,-500.0,0.00045479,31]
[312443733,1705876571404,-500.0,0.00045479,31]
[312443734,1705876571438,-500.0,0.00045479,31]
[312443735,1705876571473,-500.0,0.00045479,31]
[312443736,1705876571506,-500.0,0.00045479,31]
[312443737,1705876571539,-500.0,0.00045479,31]
[312443738,1705876571571,-500.0,0.00045479,31]
[312443739,1705876571604,-176.00555694,0.00045479,31]
[312443740,1705876571637,-155.2063783,0.00045479,31]
[312443741,1705876571669,-500.0,0.00045479,31]
[312443742,1705876571702,-509.28,0.00045479,31]
[312443743,1705876571735,-170.14947417,0.00045479,31]
[312443744,1705876571767,-439.02839644,0.00045479,31]
[312443745,1705876571803,-500.0,0.00045479,31]
[312443746,1705876571978,-500.0,0.00045479,31]
[312443747,1705876572049,-500.0,0.00045479,31]
[312443748,1705876572086,-500.0,0.00045479,31]
[312443749,1705876572122,-500.0,0.00045479,31]
[312443750,1705876572156,-508.85,0.00045479,31]
[312443751,1705876572189,-608.21,0.00045479,31]
[312443752,1705876572223,-579.63,0.00045479,31]
[312443753,1705876572256,-235.4563284,0.00045479,31]
[312443754,1705876572289,-500.0,0.00045479,31]
[312443755,1705876572322,-500.0,0.00045479,31]
[312443756,1705876572355,-598.31,0.00045479,31]
[312443757,1705876572390,-500.0,0.00045479,31]
[312443758,1705876572423,-500.0,0.00045479,31]
[312443759,1705876572455,-785.88,0.00045479,31]
[312443760,1705876572487,-529.13,0.00045479,31]
[312443761,1705876572519,-500.0,0.00045479,31]
[312443762,1705876572552,-500.0,0.00045479,31]
[312443763,1705876572587,-500.0,0.00045479,31]
[312443764,1705876572622,-500.0,0.00045479,31]
[312443765,1705876572658,-500.0,0.00045479,31]
[312443766,1705876572693,-500.0,0.00045479,31]
[312443767,1705876572726,-500.0,0.00045479,31]
[312443768,1705876572760,-500.0,0.00045479,30]
[312443769,1705876572794,-500.0,0.00045479,31]